[Event "Live Chess"]
[Site "Chess.com"]
[Date "2023.05.21"]
[Round "-"]
[White "stevochess11"]
[Black "manthanit"]
[Result "1-0"]
[WhiteElo "1703"]
[BlackElo "1085"]
[TimeControl "300"]
[EndTime "6:15:44 PDT"]
[Termination "stevochess11 won on time"]

1. e4 {[%clk 0:04:57]} 1... e6 {[%clk 0:04:59.2]} 2. Nf3 {[%clk 0:04:55.6]} 2...
g6 {[%clk 0:04:58.3]} 3. d4 {[%clk 0:04:54.3]} 3... Bg7 {[%clk 0:04:57.9]} 4.
Nc3 {[%clk 0:04:52.3]} 4... Ne7 {[%clk 0:04:56.4]} 5. Be3 {[%clk 0:04:51.2]}
5... O-O {[%clk 0:04:55.8]} 6. Qd2 {[%clk 0:04:50.2]} 6... d5 {[%clk 0:04:52.5]}
7. Bd3 {[%clk 0:04:46.4]} 7... dxe4 {[%clk 0:04:50.8]} 8. Nxe4 {[%clk
0:04:45.6]} 8... Nd7 {[%clk 0:04:48.5]} 9. O-O {[%clk 0:04:44.2]} 9... Nf5
{[%clk 0:04:46.9]} 10. Bg5 {[%clk 0:04:41.8]} 10... f6 {[%clk 0:04:43.1]} 11.
Bh4 {[%clk 0:04:30.3]} 11... Nxh4 {[%clk 0:04:39.8]} 12. Nxh4 {[%clk 0:04:29.3]}
12... b6 {[%clk 0:04:32.5]} 13. Bc4 {[%clk 0:04:27.9]} 13... Nb8 {[%clk
0:04:21.3]} 14. Rfe1 {[%clk 0:04:18.2]} 14... Kh8 {[%clk 0:04:20.2]} 15. c3
{[%clk 0:04:06.5]} 15... Bb7 {[%clk 0:04:18.3]} 16. Bxe6 {[%clk 0:04:01.5]}
16... Re8 {[%clk 0:04:13.8]} 17. d5 {[%clk 0:03:42.5]} 17... c6 {[%clk
0:03:58.6]} 18. c4 {[%clk 0:03:26.8]} 18... cxd5 {[%clk 0:03:50.6]} 19. cxd5
{[%clk 0:03:21.2]} 19... Na6 {[%clk 0:03:47]} 20. Nf3 {[%clk 0:03:13.2]} 20...
Nc7 {[%clk 0:03:43.3]} 21. Nd4 {[%clk 0:02:56.7]} 21... Bxd5 {[%clk 0:03:25.2]}
22. Bxd5 {[%clk 0:02:49.7]} 22... Qxd5 {[%clk 0:03:23.8]} 23. Rac1 {[%clk
0:02:27.7]} 23... Rac8 {[%clk 0:03:02.3]} 24. Qf4 {[%clk 0:01:58.1]} 24... h5
{[%clk 0:02:24]} 25. Nc6 {[%clk 0:01:36.5]} 25... Ne6 {[%clk 0:01:54.8]} 26. Qg3
{[%clk 0:01:28.4]} 26... Ng5 {[%clk 0:01:37.6]} 27. Nxg5 {[%clk 0:01:24.5]}
27... Bh6 {[%clk 0:01:24.5]} 28. h4 {[%clk 0:01:11.8]} 28... fxg5 {[%clk
0:01:23]} 29. hxg5 {[%clk 0:01:09.2]} 29... Bxg5 {[%clk 0:01:20.2]} 30. Rxe8+
{[%clk 0:01:04.7]} 30... Rxe8 {[%clk 0:01:17.6]} 31. Nb4 {[%clk 0:00:58.2]}
31... Qf5 {[%clk 0:01:03.9]} 32. f4 {[%clk 0:00:39.2]} 32... Bxf4 {[%clk
0:00:52]} 33. Qc3+ {[%clk 0:00:37.1]} 33... Kh7 {[%clk 0:00:48.5]} 34. Rd1
{[%clk 0:00:32.4]} 34... Kh6 {[%clk 0:00:39.3]} 35. Nd5 {[%clk 0:00:29]} 35...
Bg5 {[%clk 0:00:34.4]} 36. Rf1 {[%clk 0:00:24.8]} 36... Qxd5 {[%clk 0:00:20.6]}
37. Qc7 {[%clk 0:00:17.9]} 37... Be3+ {[%clk 0:00:16.6]} 38. Kh1 {[%clk
0:00:16.8]} 38... Bg5 {[%clk 0:00:09.8]} 39. Qxa7 {[%clk 0:00:15.4]} 39... Re6
{[%clk 0:00:06.2]} 40. Qa8 {[%clk 0:00:13.1]} 40... Qxa8 {[%clk 0:00:04.2]} 41.
Rg1 {[%clk 0:00:11.6]} 41... Qxa2 {[%clk 0:00:03.1]} 42. Rf1 {[%clk 0:00:10.7]}
42... Qxb2 {[%clk 0:00:02.6]} 43. Rg1 {[%clk 0:00:09.9]} 43... Qd4 {[%clk
0:00:01.8]} 44. Rf1 {[%clk 0:00:09]} 44... b5 {[%clk 0:00:00.6]} 45. Rg1 {[%clk
0:00:08.2]} 45... b4 {[%clk 0:00:00.2]} 46. Rf1 {[%clk 0:00:07.4]} 1-0

[Event "Live Chess"]
[Site "Chess.com"]
[Date "2023.05.21"]
[Round "-"]
[White "Duke_of_Bebington"]
[Black "MartinWalker4"]
[Result "0-1"]
[WhiteElo "1573"]
[BlackElo "2047"]
[TimeControl "300"]
[EndTime "6:15:52 PDT"]
[Termination "MartinWalker4 won by resignation"]

1. e4 {[%clk 0:04:57.3]} 1... e5 {[%clk 0:04:57.5]} 2. Nf3 {[%clk 0:04:55.9]}
2... Nc6 {[%clk 0:04:55.6]} 3. Bc4 {[%clk 0:04:54.5]} 3... Bc5 {[%clk
0:04:53.4]} 4. b4 {[%clk 0:04:47.8]} 4... Bxb4 {[%clk 0:04:50]} 5. c3 {[%clk
0:04:47.1]} 5... Ba5 {[%clk 0:04:48.3]} 6. d4 {[%clk 0:04:40.3]} 6... exd4
{[%clk 0:04:46]} 7. O-O {[%clk 0:04:34.9]} 7... d6 {[%clk 0:04:42.1]} 8. cxd4
{[%clk 0:04:30]} 8... Nf6 {[%clk 0:04:31.7]} 9. Bg5 {[%clk 0:04:17.5]} 9... O-O
{[%clk 0:04:25.6]} 10. Qb3 {[%clk 0:04:10]} 10... Bb6 {[%clk 0:04:22.1]} 11. e5
{[%clk 0:04:03.5]} 11... dxe5 {[%clk 0:04:04.5]} 12. dxe5 {[%clk 0:03:58.8]}
12... Na5 {[%clk 0:04:02.9]} 13. Qc2 {[%clk 0:03:43.4]} 13... Nxc4 {[%clk
0:03:44.7]} 14. Qxc4 {[%clk 0:03:41.2]} 14... Qd5 {[%clk 0:03:43]} 15. Nbd2
{[%clk 0:03:04.4]} 15... Qxc4 {[%clk 0:03:38.5]} 16. Nxc4 {[%clk 0:03:04.3]}
16... Ne4 {[%clk 0:03:31.6]} 17. Bf4 {[%clk 0:02:57.6]} 17... Be6 {[%clk
0:03:29.2]} 18. Rac1 {[%clk 0:02:17.8]} 18... Nc5 {[%clk 0:03:05.3]} 19. Nd4
{[%clk 0:02:00.6]} 19... Nd3 {[%clk 0:03:00.5]} 20. Nxe6 {[%clk 0:01:57.2]}
20... fxe6 {[%clk 0:02:58.5]} 21. Nxb6 {[%clk 0:01:52.8]} 21... cxb6 {[%clk
0:02:53.6]} 22. Be3 {[%clk 0:01:41.9]} 22... Nxc1 {[%clk 0:02:51.1]} 23. Rxc1
{[%clk 0:01:41.3]} 23... Rac8 {[%clk 0:02:49.4]} 24. Rd1 {[%clk 0:01:37]} 24...
Rfd8 {[%clk 0:02:47.5]} 25. Re1 {[%clk 0:01:35.4]} 25... Rc2 {[%clk 0:02:43.7]}
26. a3 {[%clk 0:01:33.9]} 26... Rd3 {[%clk 0:02:42.2]} 27. f4 {[%clk 0:01:29]}
27... g6 {[%clk 0:02:34]} 28. g4 {[%clk 0:01:27]} 28... Rxa3 {[%clk 0:02:23.3]}
29. f5 {[%clk 0:01:24.6]} 29... gxf5 {[%clk 0:02:21.8]} 30. gxf5 {[%clk
0:01:24.4]} 30... Kf7 {[%clk 0:02:20.1]} 31. f6 {[%clk 0:01:22.5]} 31... Raa2
{[%clk 0:02:17.9]} 32. Bf4 {[%clk 0:01:18]} 32... Rg2+ {[%clk 0:02:15.3]} 33.
Kh1 {[%clk 0:01:16.5]} 33... Rgf2 {[%clk 0:02:04.2]} 34. Bg3 {[%clk 0:01:14.9]}
34... Rfd2 {[%clk 0:02:01.7]} 35. Rc1 {[%clk 0:01:13.2]} 35... Rac2 {[%clk
0:01:59.4]} 36. Re1 {[%clk 0:01:07.9]} 36... a5 {[%clk 0:01:55]} 37. Rf1 {[%clk
0:01:02.5]} 37... a4 {[%clk 0:01:51.2]} 38. Kg1 {[%clk 0:01:01.9]} 38... a3
{[%clk 0:01:48.4]} 39. Bf2 {[%clk 0:01:01.3]} 39... Rxf2 {[%clk 0:01:45.9]} 40.
Rxf2 {[%clk 0:01:00]} 40... Rxf2 {[%clk 0:01:44.8]} 41. Kxf2 {[%clk 0:00:58.8]}
41... a2 {[%clk 0:01:43.9]} 0-1

[Event "Live Chess"]
[Site "Chess.com"]
[Date "2023.05.21"]
[Round "-"]
[White "Conradical12"]
[Black "AlanPaling"]
[Result "1-0"]
[WhiteElo "1587"]
[BlackElo "1377"]
[TimeControl "300"]
[EndTime "6:16:00 PDT"]
[Termination "Conradical12 won by resignation"]

1. e4 {[%clk 0:04:50.6]} 1... Nf6 {[%clk 0:04:58.6]} 2. Nc3 {[%clk 0:04:47.9]}
2... d5 {[%clk 0:04:57.4]} 3. e5 {[%clk 0:04:44.2]} 3... Ne4 {[%clk 0:04:56.4]}
4. Nxe4 {[%clk 0:04:40.7]} 4... dxe4 {[%clk 0:04:55.4]} 5. Qe2 {[%clk
0:04:36.7]} 5... Qd5 {[%clk 0:04:53.2]} 6. d3 {[%clk 0:04:28.5]} 6... exd3
{[%clk 0:04:49.2]} 7. cxd3 {[%clk 0:04:26.1]} 7... Bf5 {[%clk 0:04:42.1]} 8. Nf3
{[%clk 0:04:21.3]} 8... e6 {[%clk 0:04:38.9]} 9. Bf4 {[%clk 0:04:17.8]} 9... Nc6
{[%clk 0:04:33.4]} 10. O-O-O {[%clk 0:04:15.2]} 10... O-O-O {[%clk 0:04:27.8]}
11. d4 {[%clk 0:04:07.2]} 11... Qxa2 {[%clk 0:04:25.6]} 12. Qb5 {[%clk
0:03:57.4]} 12... Qa1+ {[%clk 0:04:20.1]} 13. Kd2 {[%clk 0:03:54.6]} 13... Qa5+
{[%clk 0:04:12.6]} 14. Qxa5 {[%clk 0:03:52.3]} 14... Nxa5 {[%clk 0:04:10.8]} 15.
Ke3 {[%clk 0:03:50.7]} 15... Nc4+ {[%clk 0:03:58.9]} 16. Bxc4 {[%clk 0:03:46.8]}
16... a6 {[%clk 0:03:53.7]} 17. Rc1 {[%clk 0:03:42.1]} 17... Be7 {[%clk
0:03:48.2]} 18. Ng5 {[%clk 0:03:31.4]} 18... Bg6 {[%clk 0:03:40.8]} 19. h4
{[%clk 0:03:22.6]} 19... h6 {[%clk 0:03:39.6]} 20. Nf3 {[%clk 0:03:09.1]} 20...
Kb8 {[%clk 0:03:33.1]} 21. Rc3 {[%clk 0:03:04.9]} 21... Bb4 {[%clk 0:03:28.8]}
22. Rb3 {[%clk 0:03:00.3]} 22... a5 {[%clk 0:03:27.6]} 23. Nd2 {[%clk
0:02:40.9]} 23... Be4 {[%clk 0:03:20.2]} 24. Nxe4 {[%clk 0:02:37.3]} 1-0

[Event "Live Chess"]
[Site "Chess.com"]
[Date "2023.05.21"]
[Round "-"]
[White "wot-not"]
[Black "Biranidun"]
[Result "0-1"]
[WhiteElo "1540"]
[BlackElo "2529"]
[TimeControl "300"]
[EndTime "6:16:01 PDT"]
[Termination "Biranidun won by resignation"]

1. e4 {[%clk 0:04:56.1]} 1... c5 {[%clk 0:04:58.7]} 2. f4 {[%clk 0:04:50.3]}
2... g6 {[%clk 0:04:57.1]} 3. Nf3 {[%clk 0:04:49.6]} 3... Bg7 {[%clk 0:04:56.3]}
4. d4 {[%clk 0:04:48.8]} 4... cxd4 {[%clk 0:04:56.2]} 5. Bd3 {[%clk 0:04:47.7]}
5... Nc6 {[%clk 0:04:56.1]} 6. O-O {[%clk 0:04:46.5]} 6... d6 {[%clk 0:04:55.7]}
7. Nbd2 {[%clk 0:04:46.2]} 7... Nf6 {[%clk 0:04:54.7]} 8. Nb3 {[%clk 0:04:45.3]}
8... Bg4 {[%clk 0:04:52.3]} 9. Bd2 {[%clk 0:04:43.1]} 9... O-O {[%clk
0:04:50.9]} 10. h3 {[%clk 0:04:42.5]} 10... Bxf3 {[%clk 0:04:50]} 11. Qxf3
{[%clk 0:04:41.6]} 11... a5 {[%clk 0:04:47.9]} 12. Rae1 {[%clk 0:04:36.9]} 12...
a4 {[%clk 0:04:47.1]} 13. Nc1 {[%clk 0:04:36]} 13... a3 {[%clk 0:04:45.1]} 14.
b3 {[%clk 0:04:31]} 14... Nd7 {[%clk 0:04:44.4]} 15. f5 {[%clk 0:04:28]} 15...
Nde5 {[%clk 0:04:42.6]} 16. Qf2 {[%clk 0:04:21.3]} 16... Qb6 {[%clk 0:04:38.1]}
17. Kh1 {[%clk 0:04:08.4]} 17... Rac8 {[%clk 0:04:35.8]} 18. Bg5 {[%clk
0:03:59]} 18... h6 {[%clk 0:04:26.1]} 19. Bh4 {[%clk 0:03:51.7]} 19... g5 {[%clk
0:04:25.3]} 20. Bg3 {[%clk 0:03:51]} 20... Nb4 {[%clk 0:04:21.4]} 21. h4 {[%clk
0:03:42.1]} 21... Bf6 {[%clk 0:04:19.6]} 22. hxg5 {[%clk 0:03:37.3]} 22... hxg5
{[%clk 0:04:19.5]} 23. Qe2 {[%clk 0:03:15.5]} 23... Kg7 {[%clk 0:04:18.2]} 24.
Kg1 {[%clk 0:03:11.1]} 24... Nxc2 {[%clk 0:04:09.2]} 25. Bxc2 {[%clk 0:03:08.1]}
25... d3+ {[%clk 0:04:07.5]} 26. Qf2 {[%clk 0:03:02.2]} 26... Qxf2+ {[%clk
0:04:03.7]} 27. Bxf2 {[%clk 0:03:01.4]} 27... Rxc2 {[%clk 0:04:01.6]} 28. Rd1
{[%clk 0:02:26.6]} 28... d2 {[%clk 0:04:00.3]} 29. Ne2 {[%clk 0:02:20.6]} 29...
Rxa2 {[%clk 0:03:58]} 30. Nc3 {[%clk 0:02:06.3]} 30... Nf3+ {[%clk 0:03:51.5]}
31. gxf3 {[%clk 0:02:04.5]} 31... Bxc3 {[%clk 0:03:51.4]} 32. Kg2 {[%clk
0:01:57]} 32... Rc2 {[%clk 0:03:46.3]} 33. Be3 {[%clk 0:01:51.8]} 33... a2
{[%clk 0:03:39.4]} 34. Bxg5 {[%clk 0:01:42.8]} 34... a1=Q {[%clk 0:03:38.7]} 35.
Rxa1 {[%clk 0:01:41.7]} 35... d1=Q+ {[%clk 0:03:37.1]} 0-1

[Event "Live Chess"]
[Site "Chess.com"]
[Date "2023.05.21"]
[Round "-"]
[White "HoarseyHorsey"]
[Black "Mugzwang"]
[Result "1-0"]
[WhiteElo "1466"]
[BlackElo "1522"]
[TimeControl "300"]
[EndTime "6:16:05 PDT"]
[Termination "HoarseyHorsey won on time"]

1. d4 {[%clk 0:04:58.6]} 1... d5 {[%clk 0:04:55.8]} 2. c4 {[%clk 0:04:57.9]}
2... e6 {[%clk 0:04:54.1]} 3. Nc3 {[%clk 0:04:56.2]} 3... Nf6 {[%clk 0:04:52.7]}
4. cxd5 {[%clk 0:04:55.7]} 4... exd5 {[%clk 0:04:51.4]} 5. Bg5 {[%clk
0:04:54.9]} 5... h6 {[%clk 0:04:50.2]} 6. Bh4 {[%clk 0:04:53.5]} 6... Be7 {[%clk
0:04:49.1]} 7. e3 {[%clk 0:04:53]} 7... O-O {[%clk 0:04:47.9]} 8. Nf3 {[%clk
0:04:52.4]} 8... c6 {[%clk 0:04:46.7]} 9. Bd3 {[%clk 0:04:51.4]} 9... Re8 {[%clk
0:04:44.2]} 10. Qc2 {[%clk 0:04:49.9]} 10... Bg4 {[%clk 0:04:30.6]} 11. Ne5
{[%clk 0:04:42.7]} 11... Be6 {[%clk 0:04:15]} 12. f3 {[%clk 0:04:34.3]} 12...
Nbd7 {[%clk 0:04:13.4]} 13. Bg3 {[%clk 0:04:29.2]} 13... Nxe5 {[%clk 0:04:08.4]}
14. Bxe5 {[%clk 0:04:27.8]} 14... Nd7 {[%clk 0:04:07.4]} 15. Bg3 {[%clk
0:04:26.2]} 15... c5 {[%clk 0:03:54.2]} 16. O-O {[%clk 0:04:14.9]} 16... cxd4
{[%clk 0:03:38.6]} 17. exd4 {[%clk 0:04:12.3]} 17... Qb6 {[%clk 0:03:36.3]} 18.
Ne2 {[%clk 0:03:49.5]} 18... Rac8 {[%clk 0:03:29.1]} 19. Qd2 {[%clk 0:03:47]}
19... Bb4 {[%clk 0:03:20.1]} 20. Nc3 {[%clk 0:03:41.9]} 20... Bd6 {[%clk
0:02:53.4]} 21. Bf2 {[%clk 0:03:33.8]} 21... Qc7 {[%clk 0:02:47.9]} 22. g3
{[%clk 0:03:32.5]} 22... Nf6 {[%clk 0:02:29.4]} 23. Rac1 {[%clk 0:03:29.2]}
23... Bh3 {[%clk 0:02:22.1]} 24. Rfe1 {[%clk 0:03:24.8]} 24... Qa5 {[%clk
0:02:10.3]} 25. Bf1 {[%clk 0:03:01.2]} 25... Bxf1 {[%clk 0:02:02.8]} 26. Kxf1
{[%clk 0:02:56.9]} 26... Bb4 {[%clk 0:01:58.8]} 27. Rxe8+ {[%clk 0:02:45.2]}
27... Rxe8 {[%clk 0:01:56.5]} 28. Be1 {[%clk 0:02:43.4]} 28... Bxc3 {[%clk
0:01:45.4]} 29. bxc3 {[%clk 0:02:37.5]} 29... Qb5+ {[%clk 0:01:42.4]} 30. Kg1
{[%clk 0:02:29.5]} 30... Re2 {[%clk 0:01:39.4]} 31. Qf4 {[%clk 0:02:18.8]} 31...
Qb2 {[%clk 0:01:33.2]} 32. g4 {[%clk 0:01:53.8]} 32... Qxa2 {[%clk 0:01:10.1]}
33. Bg3 {[%clk 0:01:30.3]} 33... Qb2 {[%clk 0:00:44.9]} 34. Qb8+ {[%clk
0:01:10.8]} 34... Kh7 {[%clk 0:00:41.9]} 35. Qf4 {[%clk 0:01:10.3]} 35... Rd2
{[%clk 0:00:32.6]} 36. Qf5+ {[%clk 0:00:58.1]} 36... Kh8 {[%clk 0:00:21.5]} 37.
Qc8+ {[%clk 0:00:51.4]} 37... Ng8 {[%clk 0:00:18.9]} 38. Re1 {[%clk 0:00:47.6]}
38... Rg2+ {[%clk 0:00:15.7]} 39. Kh1 {[%clk 0:00:45.2]} 39... Qd2 {[%clk
0:00:13.2]} 40. Re8 {[%clk 0:00:32]} 40... Qd1+ {[%clk 0:00:09.6]} 41. Re1
{[%clk 0:00:30.9]} 41... Qxf3 {[%clk 0:00:05.7]} 42. Qf5 {[%clk 0:00:24.1]}
42... Qxf5 {[%clk 0:00:04.3]} 43. gxf5 {[%clk 0:00:23.1]} 43... Rc2 {[%clk
0:00:02.7]} 44. Re3 {[%clk 0:00:20.3]} 44... Rc1+ {[%clk 0:00:01.4]} 45. Kg2
{[%clk 0:00:19.6]} 45... Rc2+ {[%clk 0:00:00.6]} 46. Kf3 {[%clk 0:00:19.3]} 1-0

[Event "Live Chess"]
[Site "Chess.com"]
[Date "2023.05.21"]
[Round "-"]
[White "AndriY19966"]
[Black "garyjc"]
[Result "1/2-1/2"]
[WhiteElo "784"]
[BlackElo "1035"]
[TimeControl "300"]
[EndTime "6:16:13 PDT"]
[Termination "Game drawn - insufficient material"]

1. e4 {[%clk 0:04:58.7]} 1... c5 {[%clk 0:04:58.6]} 2. d4 {[%clk 0:04:50.4]}
2... cxd4 {[%clk 0:04:55]} 3. Qxd4 {[%clk 0:04:49.4]} 3... Nc6 {[%clk
0:04:53.8]} 4. Qc4 {[%clk 0:04:46]} 4... Ne5 {[%clk 0:04:47]} 5. Qc3 {[%clk
0:04:41.9]} 5... d6 {[%clk 0:04:44]} 6. Bf4 {[%clk 0:04:37]} 6... Nf6 {[%clk
0:04:31.7]} 7. Bxe5 {[%clk 0:04:29.6]} 7... dxe5 {[%clk 0:04:29.4]} 8. Qxe5
{[%clk 0:04:25.6]} 8... e6 {[%clk 0:04:18.2]} 9. Bb5+ {[%clk 0:04:20.9]} 9...
Nd7 {[%clk 0:04:12.4]} 10. Nc3 {[%clk 0:04:04.8]} 10... Be7 {[%clk 0:04:11.3]}
11. Qxg7 {[%clk 0:04:00.8]} 11... Rf8 {[%clk 0:04:02.9]} 12. Qxh7 {[%clk
0:03:57.9]} 12... a6 {[%clk 0:03:55.5]} 13. Bxd7+ {[%clk 0:03:55.3]} 13... Bxd7
{[%clk 0:03:49.9]} 14. O-O-O {[%clk 0:03:54.1]} 14... Bb4 {[%clk 0:03:47.1]} 15.
Na4 {[%clk 0:03:49.4]} 15... Qg5+ {[%clk 0:03:41.4]} 16. Kb1 {[%clk 0:03:42.3]}
16... Bxa4 {[%clk 0:03:34.3]} 17. Nf3 {[%clk 0:03:34.9]} 17... Qc5 {[%clk
0:03:23.8]} 18. e5 {[%clk 0:03:31.7]} 18... Qxc2+ {[%clk 0:03:22.1]} 19. Qxc2
{[%clk 0:03:30.1]} 19... Bxc2+ {[%clk 0:03:20.2]} 20. Kxc2 {[%clk 0:03:29]}
20... Rc8+ {[%clk 0:03:17.8]} 21. Kb1 {[%clk 0:03:26.7]} 21... Ke7 {[%clk
0:03:14.7]} 22. a3 {[%clk 0:03:23.1]} 22... Bc5 {[%clk 0:03:04.6]} 23. Rc1
{[%clk 0:03:13.4]} 23... b6 {[%clk 0:02:53.4]} 24. Rhd1 {[%clk 0:03:06.3]} 24...
Rg8 {[%clk 0:02:46.8]} 25. Nh4 {[%clk 0:03:01.2]} 25... Bxf2 {[%clk 0:02:40.8]}
26. Rxc8 {[%clk 0:02:59.2]} 26... Rxc8 {[%clk 0:02:38.2]} 27. Rd6 {[%clk
0:02:55.9]} 27... Bxh4 {[%clk 0:02:35.4]} 28. g3 {[%clk 0:02:54.1]} 28... Bg5
{[%clk 0:02:32.8]} 29. Rxb6 {[%clk 0:02:50]} 29... Rc1+ {[%clk 0:02:30]} 30. Ka2
{[%clk 0:02:48.7]} 30... Rc2 {[%clk 0:02:26.8]} 31. h4 {[%clk 0:02:45.4]} 31...
Be3 {[%clk 0:02:21]} 32. Rxa6 {[%clk 0:02:38.2]} 32... Bf2 {[%clk 0:02:08.5]}
33. Ra4 {[%clk 0:02:26]} 33... Bxg3 {[%clk 0:02:06.3]} 34. Re4 {[%clk
0:02:18.6]} 34... Rh2 {[%clk 0:01:58.7]} 35. a4 {[%clk 0:02:09.7]} 35... Bxh4
{[%clk 0:01:56.7]} 36. a5 {[%clk 0:02:08.4]} 36... Bf2 {[%clk 0:01:52.5]} 37.
Re2 {[%clk 0:02:03.5]} 37... Kd7 {[%clk 0:01:35.8]} 38. b4 {[%clk 0:01:56.9]}
38... Kc6 {[%clk 0:01:30.1]} 39. Ka3 {[%clk 0:01:51.2]} 39... Kb5 {[%clk
0:01:29.2]} 40. Kb3 {[%clk 0:01:48.9]} 40... Ka6 {[%clk 0:01:18.2]} 41. Kc4
{[%clk 0:01:46.7]} 41... Kb7 {[%clk 0:01:02.6]} 42. Kb5 {[%clk 0:01:40]} 42...
Ka7 {[%clk 0:00:59.1]} 43. Kc6 {[%clk 0:01:34.2]} 43... Ka6 {[%clk 0:00:48.7]}
44. Kd7 {[%clk 0:01:25.4]} 44... Kb5 {[%clk 0:00:47.4]} 45. Rb2 {[%clk
0:01:24.2]} 45... Kc4 {[%clk 0:00:36.2]} 46. Ke7 {[%clk 0:01:21]} 46... Bh4+
{[%clk 0:00:32.9]} 47. Kxf7 {[%clk 0:01:18.3]} 47... Rxb2 {[%clk 0:00:31.9]} 48.
Kxe6 {[%clk 0:01:16]} 48... Rxb4 {[%clk 0:00:30.9]} 49. Kd7 {[%clk 0:01:14.1]}
49... Rb5 {[%clk 0:00:30.1]} 50. e6 {[%clk 0:01:13.2]} 50... Rxa5 {[%clk
0:00:29.1]} 51. e7 {[%clk 0:01:12.7]} 51... Bxe7 {[%clk 0:00:27.7]} 52. Kxe7
{[%clk 0:01:12.3]} 52... Ra6 {[%clk 0:00:26.1]} 53. Kd7 {[%clk 0:01:09.1]} 53...
Kb5 {[%clk 0:00:20.5]} 54. Kc7 {[%clk 0:01:06.9]} 54... Rb6 {[%clk 0:00:19.3]}
55. Kd7 {[%clk 0:01:05]} 55... Kc5 {[%clk 0:00:17.1]} 56. Kc7 {[%clk 0:01:04.3]}
56... Kd5 {[%clk 0:00:15.9]} 57. Kxb6 {[%clk 0:01:03]} 1/2-1/2

[Event "Live Chess"]
[Site "Chess.com"]
[Date "2023.05.21"]
[Round "-"]
[White "gmnorfolk"]
[Black "AttackingSnowLeopard"]
[Result "0-1"]
[WhiteElo "2130"]
[BlackElo "2168"]
[TimeControl "300"]
[EndTime "6:16:34 PDT"]
[Termination "AttackingSnowLeopard won by resignation"]

1. d4 {[%clk 0:04:57.4]} 1... d5 {[%clk 0:04:58.9]} 2. c4 {[%clk 0:04:56.2]}
2... c6 {[%clk 0:04:57.4]} 3. cxd5 {[%clk 0:04:53.8]} 3... cxd5 {[%clk 0:04:56]}
4. Nc3 {[%clk 0:04:53.7]} 4... Nf6 {[%clk 0:04:54.5]} 5. Bf4 {[%clk 0:04:53.3]}
5... Nc6 {[%clk 0:04:53.6]} 6. Nf3 {[%clk 0:04:51.9]} 6... Bf5 {[%clk
0:04:52.7]} 7. e3 {[%clk 0:04:51.2]} 7... e6 {[%clk 0:04:52.3]} 8. Bb5 {[%clk
0:04:49.5]} 8... Qb6 {[%clk 0:04:48.7]} 9. Ne5 {[%clk 0:04:42.7]} 9... Bb4
{[%clk 0:04:46.3]} 10. O-O {[%clk 0:04:38.9]} 10... O-O {[%clk 0:04:44.6]} 11.
Qa4 {[%clk 0:04:35.7]} 11... Bxc3 {[%clk 0:04:28.2]} 12. bxc3 {[%clk 0:04:31.2]}
12... Nxe5 {[%clk 0:04:09.5]} 13. Bxe5 {[%clk 0:04:24.1]} 13... Ne4 {[%clk
0:04:08.5]} 14. Rfc1 {[%clk 0:04:04.1]} 14... f6 {[%clk 0:03:52.9]} 15. Bg3
{[%clk 0:04:00.2]} 15... a6 {[%clk 0:03:46.6]} 16. Bf1 {[%clk 0:03:56.3]} 16...
Nd2 {[%clk 0:03:41]} 17. c4 {[%clk 0:03:45.5]} 17... Nxf1 {[%clk 0:03:28.6]} 18.
Kxf1 {[%clk 0:03:40.3]} 18... Bd3+ {[%clk 0:03:26.7]} 19. Kg1 {[%clk 0:03:36.2]}
19... dxc4 {[%clk 0:03:25.8]} 20. Qd1 {[%clk 0:03:31]} 20... Qc6 {[%clk
0:03:23.4]} 21. f3 {[%clk 0:03:28]} 21... Qd5 {[%clk 0:03:21.5]} 22. Qd2 {[%clk
0:03:26.9]} 22... b5 {[%clk 0:03:20.3]} 23. Bf2 {[%clk 0:03:22.7]} 23... e5
{[%clk 0:03:19.2]} 24. e4 {[%clk 0:03:21.6]} 24... Qd7 {[%clk 0:03:16.5]} 25. d5
{[%clk 0:03:19.6]} 25... f5 {[%clk 0:03:14.6]} 26. Qe3 {[%clk 0:03:08.4]} 26...
fxe4 {[%clk 0:03:11.6]} 27. fxe4 {[%clk 0:03:07]} 27... Rf4 {[%clk 0:03:11.1]}
28. a4 {[%clk 0:03:02]} 28... Rxe4 {[%clk 0:03:09.4]} 29. Qc5 {[%clk 0:02:58.3]}
29... Rc8 {[%clk 0:03:04.5]} 30. Qb4 {[%clk 0:02:50.6]} 30... Qxd5 {[%clk
0:02:51.7]} 31. axb5 {[%clk 0:02:49]} 31... Rg4 {[%clk 0:02:37.5]} 32. g3 {[%clk
0:02:43.1]} 32... Qf3 {[%clk 0:02:36]} 33. bxa6 {[%clk 0:02:35.8]} 33... Be4
{[%clk 0:02:30.5]} 34. Kf1 {[%clk 0:02:32.3]} 34... Qg2+ {[%clk 0:02:26.2]} 35.
Ke1 {[%clk 0:02:27.4]} 35... Qh1+ {[%clk 0:02:20.8]} 36. Ke2 {[%clk 0:02:20.5]}
36... Bd3+ {[%clk 0:02:17.1]} 37. Kd2 {[%clk 0:02:14.4]} 37... Qf3 {[%clk
0:02:15.3]} 38. Qb6 {[%clk 0:01:51.3]} 38... c3+ {[%clk 0:02:04.5]} 39. Rxc3
{[%clk 0:01:40.9]} 39... Qe2+ {[%clk 0:02:03.5]} 0-1

[Event "Live Chess"]
[Site "Chess.com"]
[Date "2023.05.21"]
[Round "-"]
[White "davigator"]
[Black "Alfiedog12"]
[Result "1-0"]
[WhiteElo "2313"]
[BlackElo "918"]
[TimeControl "300"]
[EndTime "6:16:41 PDT"]
[Termination "davigator won by resignation"]

1. e4 {[%clk 0:04:58.8]} 1... c6 {[%clk 0:04:57.1]} 2. d4 {[%clk 0:04:57]} 2...
d5 {[%clk 0:04:55.8]} 3. e5 {[%clk 0:04:54.4]} 3... Bf5 {[%clk 0:04:54.3]} 4. c4
{[%clk 0:04:52.6]} 4... e6 {[%clk 0:04:53.3]} 5. Qb3 {[%clk 0:04:51.4]} 5... Qb6
{[%clk 0:04:50.2]} 6. Nc3 {[%clk 0:04:48.7]} 6... Qxb3 {[%clk 0:04:48]} 7. axb3
{[%clk 0:04:47.7]} 7... a6 {[%clk 0:04:45.5]} 8. c5 {[%clk 0:04:47]} 8... Nd7
{[%clk 0:04:41.6]} 9. b4 {[%clk 0:04:46.6]} 9... b5 {[%clk 0:04:36.5]} 10. Bxb5
{[%clk 0:04:39.2]} 10... cxb5 {[%clk 0:04:33.4]} 11. Nxb5 {[%clk 0:04:39]} 11...
Kd8 {[%clk 0:04:21.1]} 12. Bd2 {[%clk 0:04:29.9]} 12... Ne7 {[%clk 0:04:18.1]}
13. Nd6 {[%clk 0:04:27.7]} 13... Bg6 {[%clk 0:04:07.7]} 14. b5 {[%clk
0:04:24.8]} 14... a5 {[%clk 0:04:04.1]} 15. Rxa5 {[%clk 0:04:14.5]} 15... Rxa5
{[%clk 0:04:01.8]} 16. Bxa5+ {[%clk 0:04:13.5]} 16... Nb6 {[%clk 0:03:54.7]} 17.
Bxb6+ {[%clk 0:04:13]} 17... Kd7 {[%clk 0:03:54.1]} 18. c6+ {[%clk 0:04:12]}
18... Nxc6 {[%clk 0:03:52.4]} 19. bxc6+ {[%clk 0:04:10.6]} 19... Kxc6 {[%clk
0:03:51]} 20. Bc5 {[%clk 0:04:10.3]} 20... Bxd6 {[%clk 0:03:47.9]} 21. exd6
{[%clk 0:04:08.5]} 21... f5 {[%clk 0:03:45.8]} 22. Nf3 {[%clk 0:04:07.2]} 22...
Be8 {[%clk 0:03:45.3]} 23. Kd2 {[%clk 0:04:04.8]} 23... Bd7 {[%clk 0:03:43]} 24.
Ne5+ {[%clk 0:04:03.9]} 24... Kb5 {[%clk 0:03:34.2]} 25. Nxd7 {[%clk 0:04:02.3]}
25... Ra8 {[%clk 0:03:30.5]} 26. Kc3 {[%clk 0:03:59.5]} 26... Ra2 {[%clk
0:03:19]} 27. Re1 {[%clk 0:03:58]} 1-0